bitfinex-derivatives/quotes_SOLF0:USTF0_20250312
["timestamp","ask_amount","ask_price","bid_price","bid_amount"]
[1741815148478,0.05229518,126.19,126.16,7.978e-05]
[1741815148880,7.9272,126.17,126.16,7.978e-05]
[1741815153983,0.05229518,126.19,126.16,7.978e-05]
[1741815155789,7.9266,126.18,126.16,7.978e-05]
[1741815157689,7.9266,126.18,126.16,4.29547978]
[1741815161989,7.9272,126.17,126.16,4.29547978]
[1741815166793,7.9272,126.17,126.16,7.978e-05]
[1741815190611,19.65668967,126.18,126.16,7.978e-05]
[1741815192615,7.9272,126.17,126.16,7.978e-05]
[1741815209832,39.2672,126.17,126.16,7.978e-05]
[1741815212031,47.1872,126.17,126.16,7.978e-05]
[1741815212233,7.9352,126.05,126.01,10.97456042]
[1741815212427,19.66508967,126.05,126.01,23.67436042]
[1741815213038,7.9354,126.04,126.01,23.67436042]
[1741815213240,15.8561,126.16,126.01,6.042e-05]
[1741815213241,43.06988967,126.03,126.01,6.042e-05]
[1741815213540,7.9373,126.01,126.0,108.19567405]
[1741815213735,19.66718967,126.01,126.0,108.19567405]
[1741815215243,11.72988967,126.01,126.0,108.19567405]
[1741815216043,11.72988967,126.01,125.99,0.05364548]
[1741815216542,11.78090005,126.01,125.99,0.05364548]
[1741815218938,19.71830005,126.01,125.99,0.05364548]
[1741815221638,7.9379,126.0,125.99,0.05364548]
[1741815221837,15.97920005,126.01,125.91,11.9668]
[1741815222032,11.72988967,125.98,125.92,11.72988967]
[1741815222244,31.36,125.97,125.92,11.72988967]
[1741815222641,11.72988967,125.98,125.92,11.72988967]
[1741815222839,11.72988967,125.98,125.93,7.942]
[1741815223042,0.05519547,125.96,125.94,0.05821513]
[1741815223246,11.72988967,126.0,125.94,43.1481048]
[1741815223444,11.72988967,126.0,125.94,51.0894048]
[1741815223846,11.72988967,126.0,125.96,11.72988967]
[1741815224041,11.72988967,126.0,125.97,40.068]
[1741815224246,18.37686991,126.03,125.97,40.068]
[1741815224444,0.05709773,126.0,125.97,40.12061256]
[1741815227750,0.05709773,126.0,125.98,7.9388]
[1741815228350,0.05709773,126.0,125.98,11.9406]
[1741815228745,0.05709773,126.0,125.99,7.9385]
[1741815232853,31.36,126.05,125.98,4.0018]
[1741815232854,49.71686991,126.06,125.98,4.0018]
[1741815233054,49.71686991,126.06,126.02,7.9363]
[1741815233454,57.65126991,126.06,126.02,7.9363]
[1741815234057,0.0533504,126.05,126.03,0.05757633]
[1741815234857,7.9881504,126.05,126.03,0.05757633]
[1741815235952,26.31226991,126.04,126.03,0.05757633]
[1741815236757,26.31226991,126.04,126.03,0.0004786]
[1741815238756,26.31226991,126.04,126.0,7.9378]
[1741815239157,7.936,126.03,126.0,7.9378]
[1741815239759,7.936,126.03,126.0,0.0590502]
[1741815240363,18.37686991,126.02,126.0,0.0590502]
[1741815240558,7.9373,126.01,126.0,0.0590502]
[1741815241858,7.9395,125.98,125.94,7.9414]
[1741815242160,18.37686991,125.98,125.92,8.1733]
[1741815242559,26.31646991,125.98,125.93,7.9421]
[1741815243168,0.0556361,125.97,125.94,0.05964784]
[1741815243662,7.9955361,125.97,125.94,0.05964784]
[1741815244065,0.0556361,125.97,125.94,0.05964784]
[1741815244258,19.71349396,125.95,125.94,0.05964784]
[1741815248660,19.71349396,125.95,125.94,4.784e-05]
[1741815254667,23.70559396,125.95,125.94,4.784e-05]
[1741815255170,31.64559396,125.95,125.94,4.784e-05]
[1741815258069,23.70559396,125.95,125.94,4.784e-05]
[1741815258471,55.04559396,125.95,125.94,4.784e-05]
[1741815259279,51.05349396,125.95,125.94,4.784e-05]
[1741815259576,19.71349396,125.95,125.94,4.784e-05]
[1741815262274,26.34098445,125.95,125.94,4.784e-05]
[1741815264878,49.79562055,125.97,125.94,4.784e-05]
[1741815265378,18.45562055,125.97,125.94,4.784e-05]
[1741815265982,7.941,125.95,125.94,4.784e-05]
[1741815266183,18.45562055,125.97,125.94,4.784e-05]
[1741815267286,7.9404,125.96,125.94,4.784e-05]
[1741815268093,7.941,125.95,125.94,4.784e-05]
[1741815268291,18.45562055,125.97,125.94,4.784e-05]
[1741815268586,7.9409,125.96,125.94,4.784e-05]
[1741815268791,18.45562055,125.97,125.94,4.784e-05]
[1741815269391,7.9404,125.96,125.94,4.784e-05]
[1741815270690,18.45562055,125.97,125.94,4.784e-05]
[1741815270891,7.941,125.95,125.94,4.784e-05]
[1741815272288,7.9407,125.96,125.94,4.784e-05]
[1741815272491,18.45562055,125.97,125.94,4.784e-05]
[1741815272889,7.9409,125.96,125.94,4.784e-05]
[1741815273493,7.941,125.95,125.94,4.784e-05]
[1741815273691,18.45562055,125.97,125.94,4.784e-05]
[1741815273891,0.0556361,125.97,125.94,4.784e-05]
[1741815274093,7.9407,125.96,125.94,4.784e-05]
[1741815275083,7.941,125.95,125.94,4.784e-05]
[1741815275483,7.9407,125.96,125.94,4.784e-05]
[1741815275893,0.0556361,125.97,125.94,4.784e-05]
[1741815276285,7.9959361,125.97,125.94,7.94144784]
[1741815276484,0.0556361,125.97,125.94,4.784e-05]
[1741815276884,7.9408,125.96,125.94,4.784e-05]
[1741815277088,0.0556361,125.97,125.94,4.784e-05]
[1741815277497,7.941,125.95,125.94,4.784e-05]
[1741815281496,26.34098445,125.95,125.94,4.784e-05]
[1741815284303,19.72055811,125.95,125.94,4.784e-05]
[1741815285499,11.77955811,125.95,125.86,4.0033]
[1741815285705,7.9461,125.87,125.86,4.0033]
[1741815286499,19.72565811,125.87,125.86,4.0033]
[1741815288205,19.72565811,125.87,125.85,0.05437458]
[1741815288206,7.9467,125.86,125.85,0.05437458]
[1741815288606,7.9467,125.86,125.85,7.458e-05]
[1741815288904,7.9499,125.81,125.8,4.2835]
[1741815289101,11.77955811,125.83,125.8,4.2835]
[1741815289303,11.77955811,125.81,125.78,48.0260769]
[1741815289596,11.77955811,125.79,125.78,48.0260769]
[1741815289801,11.77955811,125.79,125.78,4.2579]
[1741815290504,19.73065811,125.79,125.78,4.2579]
[1741815290698,11.77955811,125.79,125.78,4.2579]
[1741815291006,11.77955811,125.79,125.77,0.05946759]
[1741815292205,0.0580655,125.8,125.77,0.05946759]
[1741815292406,31.3,125.84,125.77,0.05946759]
[1741815292606,18.43418566,125.85,125.77,0.05946759]
[1741815292807,31.32,125.86,125.76,49.73418566]
[1741815293001,31.32,125.86,125.8,7.95]
[1741815293204,31.32,125.86,125.81,4.3752]
[1741815293607,31.32,125.86,125.82,8.00704042]
[1741815293608,0.05538982,125.85,125.82,8.00704042]
[1741815294903,18.43418566,125.89,125.84,7.948]
[1741815295100,7.9448,125.9,125.84,7.948]
[1741815295305,18.43418566,125.91,125.84,7.948]
[1741815295709,7.9444,125.9,125.84,7.948]
[1741815295903,7.9444,125.9,125.85,7.9473]
[1741815296103,0.05510514,125.88,125.86,0.05765756]
[1741815296711,0.05510514,125.88,125.87,7.9461]
[1741815296911,18.43418566,125.91,125.87,7.9461]
[1741815298112,0.05251107,125.9,125.87,7.9461]
[1741815299406,0.05251107,125.9,125.88,7.9455]
[1741815299612,0.05251107,125.9,125.86,31.35765756]
[1741815300006,0.05251107,125.9,125.88,7.945]
[1741815301009,0.05251107,125.9,125.87,4.3259]
[1741815301315,18.43418566,125.93,125.87,4.3259]
[1741815301614,26.37528566,125.95,125.9,7.9438]
[1741815301811,26.37528566,125.95,125.89,31.3]
[1741815302013,18.43418566,125.95,125.9,3.9639]
[1741815302214,7.942,125.94,125.9,11.9078]
[1741815302410,8.00020076,125.94,125.91,0.05648318]
[1741815305317,0.05820076,125.94,125.91,0.05648318]
[1741815305622,7.9424,125.93,125.91,0.05648318]
[1741815306112,0.05820076,125.94,125.91,0.05648318]
[1741815306314,7.9429,125.92,125.91,0.05648318]
[1741815308924,7.9429,125.92,125.91,8.318e-05]
[1741815309920,7.9466,125.87,125.85,35.6401]
[1741815310311,31.28,125.92,125.84,8.6388]
[1741815310312,18.43418566,125.89,125.84,8.6388]
[1741815310716,18.43418566,125.87,125.81,4.3601]
[1741815310917,18.43418566,125.87,125.83,0.06022865]
[1741815310918,0.05163889,125.85,125.83,0.06022865]
[1741815312012,7.948,125.84,125.83,0.06022865]
[1741815313222,0.05163889,125.85,125.83,0.06022865]
[1741815313419,7.948,125.84,125.83,0.06022865]
[1741815314121,0.05163889,125.85,125.83,0.06022865]
[1741815315514,7.948,125.84,125.83,0.06022865]
[1741815321629,0.05163889,125.85,125.83,0.06022865]
[1741815322924,0.05163889,125.85,125.83,8.00842865]
[1741815323826,0.05163889,125.85,125.83,0.06022865]
[1741815324126,7.9457,125.88,125.83,4.36282865]
[1741815324324,7.9457,125.88,125.83,4.3026]
[1741815324525,7.9457,125.88,125.85,7.947]
[1741815324830,7.9457,125.88,125.85,39.227]
[1741815325222,7.99913289,125.88,125.85,39.27716415]
[1741815325423,0.05343289,125.88,125.85,31.33016415]
[1741815325621,22.79158566,125.93,125.87,7.9461]
[1741815325622,7.9444,125.9,125.87,7.9461]
[1741815325822,7.9444,125.9,125.88,31.28]
[1741815326126,7.9437,125.91,125.88,31.28]
[1741815326328,7.9437,125.91,125.88,39.2254]
[1741815326722,7.99813224,125.91,125.88,39.28383164]
[1741815327432,0.05443224,125.91,125.88,39.28383164]
[1741815328426,7.9445,125.9,125.88,31.33843164]
[1741815329131,7.99833224,125.91,125.88,31.33843164]
[1741815331333,7.9443,125.9,125.88,31.33843164]
[1741815331827,0.05443224,125.91,125.88,0.05843164]
[1741815332227,18.4886179,125.91,125.88,0.05843164]
[1741815332427,7.9448,125.89,125.88,0.05843164]
[1741815336138,7.9448,125.89,125.88,3.164e-05]
[1741815338230,26.37898566,125.89,125.88,3.164e-05]
[1741815339437,57.63898566,125.89,125.88,3.164e-05]
[1741815341935,39.2048,125.89,125.88,3.164e-05]
[1741815342141,7.9448,125.89,125.88,3.164e-05]
[1741815354555,39.1848,125.89,125.88,3.164e-05]
[1741815358355,7.9486,125.83,125.82,4.1595]
[1741815358756,11.78430027,125.85,125.79,47.06600027]
[1741815358956,7.9496,125.82,125.79,51.07360027]
[1741815359450,11.78430027,125.85,125.79,51.07360027]
[1741815359658,7.95,125.81,125.79,51.13444263]
[1741815360158,7.95,125.81,125.79,39.35014236]
[1741815360453,0.06068193,125.82,125.79,51.13444263]
[1741815360653,0.06068193,125.82,125.79,59.08504263]
[1741815361059,11.78430027,125.87,125.81,11.78430027]
[1741815361358,7.9477,125.85,125.82,31.22]
[1741815361561,11.78430027,125.87,125.82,31.22]
[1741815361857,7.9471,125.86,125.82,39.1692]
[1741815362158,11.78430027,125.87,125.83,0.05138319]
[1741815362159,0.05725032,125.85,125.83,0.05138319]
[1741815363461,8.00495032,125.85,125.83,0.05138319]
[1741815363663,0.05725032,125.85,125.83,0.05138319]
[1741815364657,0.05725032,125.85,125.83,7.99998319]
[1741815365154,0.05725032,125.85,125.83,0.05138319]
[1741815367159,8.00475032,125.85,125.83,0.05138319]
[1741815367758,0.05725032,125.85,125.83,0.05138319]
[1741815369761,8.00475032,125.85,125.83,0.05138319]
[1741815373170,0.05725032,125.85,125.83,0.05138319]
[1741815373769,8.00525032,125.85,125.83,0.05138319]
[1741815380577,8.00525032,125.85,125.83,7.99998319]
[1741815381471,0.05725032,125.85,125.83,7.99998319]
[1741815381774,8.00475032,125.85,125.83,7.99998319]
[1741815382175,0.05725032,125.85,125.83,7.99998319]
[1741815382877,8.00465032,125.85,125.83,7.99998319]
[1741815385478,0.05725032,125.85,125.83,7.99998319]
[1741815386378,8.00465032,125.85,125.83,7.99998319]
[1741815386877,0.05725032,125.85,125.83,7.99998319]
[1741815388477,247.1057,125.92,125.83,11.83568346]
[1741815388675,56.01876948,125.93,125.85,11.78430027]
[1741815388880,56.01876948,125.93,125.86,31.2]
[1741815389179,7.9441,125.91,125.87,7.9458]
[1741815389778,0.05658881,125.9,125.88,0.060185]
[1741815390772,7.9432,125.92,125.88,8.005385]
[1741815390978,7.9432,125.92,125.89,31.18]
[1741815391782,8.00175565,125.92,125.89,31.18]
[1741815392885,0.05855565,125.92,125.89,31.18]
[1741815393084,7.9436,125.91,125.89,31.18]
[1741815393382,0.05855565,125.92,125.89,31.18]
[1741815394187,8.00185565,125.92,125.89,31.18]
[1741815396782,7.9436,125.91,125.89,31.18]
[1741815402084,7.9442,125.9,125.89,31.18]
[1741815404989,0.05855565,125.92,125.89,42.96430027]
[1741815405191,0.05855565,125.92,125.91,11.78430027]
[1741815407295,7.9423,125.93,125.91,11.78430027]
[1741815407502,7.9423,125.93,125.92,31.16]
[1741815417906,7.9429,125.92,125.91,0.05110641]
[1741815419707,19.72720027,125.92,125.91,0.05110641]
[1741815428310,19.72720027,125.92,125.91,6.41e-06]
[1741815429211,7.9471,125.86,125.84,232.90430027]
[1741815429411,7.9471,125.86,125.84,42.90430027]
[1741815429813,7.9482,125.84,125.82,11.78430027]
[1741815430009,7.9482,125.84,125.82,31.12]
[1741815430407,8.00077166,125.84,125.82,31.1719666]
[1741815431010,7.9486,125.83,125.82,31.1719666]
[1741815432320,0.05257166,125.84,125.82,31.1719666]
[1741815432321,8.00097166,125.84,125.82,31.1719666]
[1741815433118,7.9486,125.83,125.82,31.1719666]
[1741815433818,7.9486,125.83,125.82,0.0519666]
[1741815437318,19.73290027,125.83,125.82,0.0519666]
[1741815437515,11.78430027,125.83,125.78,11.78430027]
[1741815437715,7.9511,125.79,125.78,11.78430027]
[1741815438512,7.9521,125.78,125.75,16.10760027]
[1741815438712,0.05854137,125.8,125.77,0.05684915]
[1741815438917,11.78430027,125.79,125.77,0.05684915]
[1741815439111,7.9519,125.78,125.77,0.05684915]
[1741815449222,0.05854137,125.8,125.77,0.05684915]
[1741815449427,7.9515,125.79,125.77,0.05684915]
[1741815449826,0.05854137,125.8,125.77,0.05684915]
[1741815450028,0.05854137,125.8,125.77,42.96114942]
[1741815450729,0.05854137,125.8,125.79,11.78430027]
[1741815451826,0.05854137,125.8,125.79,19.73540027]
[1741815455323,7.9489,125.83,125.79,11.78430027]
[1741815455627,7.9489,125.83,125.8,31.1]
[1741815456329,7.9477,125.85,125.81,19.73360027]
[1741815456529,0.05664855,125.83,125.81,19.73360027]
[1741815457133,0.05664855,125.83,125.82,7.9492]
[1741815457926,25.20935781,125.94,125.85,11.78430027]
[1741815457927,11.78430027,125.91,125.85,11.78430027]
[1741815458133,11.78430027,125.91,125.85,42.88430027]
[1741815458425,11.78430027,125.92,125.87,11.78430027]
[1741815458727,16.04450027,125.95,125.89,11.78430027]
[1741815458931,0.05680533,125.91,125.9,7.9438]
[1741815459225,7.942,125.94,125.9,7.9438]
[1741815459429,0.05995429,125.92,125.9,7.9438]
[1741815459629,0.05995429,125.92,125.89,11.84384842]
[1741815460332,19.72560027,125.95,125.89,19.78824842]
[1741815461027,19.72560027,125.95,125.89,11.84384842]
[1741815461224,11.78430027,125.95,125.89,11.84384842]
[1741815461431,7.99855978,125.93,125.89,11.84384842]
[1741815461934,0.05605978,125.93,125.89,11.84384842]
[1741815463027,0.05605978,125.93,125.89,15.81684842]
[1741815464434,0.05605978,125.93,125.89,23.76164842]
[1741815464634,7.99835978,125.93,125.89,15.81684842]
[1741815465132,0.05605978,125.93,125.89,15.81684842]
[1741815465333,0.05605978,125.93,125.91,11.78430027]
[1741815465537,0.05605978,125.93,125.92,31.08]
[1741815466431,7.99835978,125.93,125.92,31.08]
[1741815474038,7.9442,125.9,125.89,15.81684842]
[1741815475540,7.9442,125.9,125.89,0.05954815]
[1741815480263,7.9442,125.9,125.89,4.815e-05]
[1741815488663,11.9105,125.9,125.89,4.815e-05]
[1741815488861,50.8905,125.9,125.89,4.815e-05]
[1741815489063,55.049,125.9,125.89,4.815e-05]
[1741815489667,55.049,125.9,125.82,31.04]
[1741815489867,11.78430027,125.87,125.82,31.04]
[1741815490268,7.9486,125.83,125.82,31.04]
[1741815490469,11.78430027,125.87,125.81,47.03680027]
[1741815490863,7.948,125.84,125.83,0.06005281]
[1741815493571,7.948,125.84,125.83,5.281e-05]
[1741815493965,51.0165,125.84,125.83,5.281e-05]
[1741815494171,51.4122,125.84,125.76,11.78430027]
[1741815494372,11.78430027,125.8,125.75,4.0687]
[1741815495273,7.9524,125.77,125.76,0.05691183]
[1741815497566,0.05817706,125.79,125.76,0.05691183]
[1741815498179,8.00967706,125.79,125.76,0.05691183]
[1741815498677,0.05817706,125.79,125.76,11.8412121]
[1741815498875,0.05817706,125.79,125.77,7.9523]
[1741815499072,0.05817706,125.79,125.77,38.9923]
[1741815499275,0.05817706,125.79,125.78,7.9518]
[1741815499870,0.05817706,125.79,125.78,19.73610027]
[1741815500270,11.78430027,125.84,125.8,7.9505]
[1741815500468,11.78430027,125.86,125.8,50.77480027]
[1741815500682,11.78430027,125.84,125.8,31.04]
[1741815500872,7.9499,125.81,125.8,31.04]
[1741815501779,0.05375019,125.82,125.8,31.04]
[1741815502477,7.9499,125.81,125.8,31.04]
[1741815503880,11.83805046,125.82,125.79,0.05100135]
[1741815507484,7.9505,125.8,125.79,0.05100135]
[1741815514086,7.9505,125.8,125.79,1.35e-06]
[1741815515790,19.73480027,125.8,125.79,1.35e-06]
[1741815518187,7.9546,125.74,125.72,11.78430027]
[1741815518393,11.78430027,125.76,125.7,19.74110027]
[1741815518595,31.04,125.78,125.7,42.82430027]
[1741815518596,42.82430027,125.78,125.7,42.82430027]
[1741815519285,0.05861321,125.75,125.7,42.82430027]
[1741815519486,0.05861321,125.75,125.73,0.05965007]
[1741815519690,8.01241321,125.75,125.73,0.05965007]
[1741815520496,0.05861321,125.75,125.73,0.05965007]
[1741815520692,7.9543,125.74,125.73,0.05965007]
[1741815521586,8.01251321,125.75,125.73,0.05965007]
[1741815522795,0.05861321,125.75,125.73,0.05965007]
[1741815522998,0.05861321,125.75,125.74,11.78430027]
[1741815523200,0.05861321,125.75,125.74,19.73860027]
[1741815523397,0.05861321,125.75,125.74,50.77860027]
[1741815523798,4.2582,125.82,125.76,7.9527]
[1741815523995,16.04250027,125.82,125.76,11.78430027]
[1741815524391,7.951,125.8,125.76,11.78430027]
[1741815524793,16.04250027,125.82,125.76,11.78430027]
[1741815524992,8.0099603,125.79,125.77,0.06080365]
[1741815529311,7.9518,125.78,125.77,0.06080365]
[1741815544018,8.0100603,125.79,125.77,0.06080365]
[1741815546521,7.9518,125.78,125.77,0.06080365]
[1741815546716,0.0585603,125.79,125.77,0.06080365]
[1741815547327,0.0585603,125.79,125.77,8.01310365]
[1741815547928,0.0585603,125.79,125.77,0.06080365]
[1741815550129,0.0585603,125.79,125.77,8.01320365]
[1741815550925,0.0585603,125.79,125.77,0.06080365]
[1741815551531,0.0585603,125.79,125.77,8.01310365]
[1741815552727,0.0585603,125.79,125.77,19.79740392]
[1741815554026,0.0585603,125.79,125.77,11.84510392]
[1741815554234,0.0585603,125.79,125.78,7.9518]
[1741815556835,7.9495,125.82,125.79,7.9509]
[1741815557030,7.9495,125.82,125.79,50.73520027]
[1741815557830,7.9495,125.82,125.79,50.79292229]
[1741815558038,8.00351712,125.82,125.8,7.9505]
[1741815558831,8.00331712,125.82,125.8,7.9505]
[1741815559033,0.05401712,125.82,125.79,50.79292229]
[1741815559335,8.00321712,125.82,125.79,50.79292229]
[1741815560633,8.00321712,125.82,125.79,42.84202229]
[1741815560835,8.00321712,125.82,125.8,7.9505]
[1741815561136,8.00321712,125.82,125.79,42.84202229]
[1741815561336,8.00321712,125.82,125.79,50.79252229]
[1741815561738,0.05401712,125.82,125.79,42.84202229]
[1741815561940,0.05401712,125.82,125.8,7.9502]
[1741815562832,0.05401712,125.82,125.79,42.84202229]
[1741815563037,0.05401712,125.82,125.81,11.78430027]
[1741815563836,0.05401712,125.82,125.81,19.73420027]
[1741815564442,7.947,125.86,125.81,11.78430027]
[1741815564641,7.947,125.86,125.82,30.98]
[1741815565034,7.947,125.86,125.83,7.9481]
[1741815565237,7.947,125.86,125.82,30.98]
[1741815565431,8.00428458,125.86,125.83,0.0520292]
[1741815567944,0.05728458,125.86,125.83,0.0520292]
[1741815568540,7.9474,125.85,125.83,0.0520292]
[1741815570539,7.948,125.84,125.83,0.0520292]
[1741815572143,19.73230027,125.84,125.83,0.0520292]
[1741815572646,7.9512,125.79,125.77,11.78430027]
[1741815572845,7.9512,125.79,125.77,42.74430027]
[1741815573242,7.9518,125.78,125.77,11.78430027]
[1741815573448,7.9518,125.78,125.76,30.96]
[1741815573837,8.00417234,125.78,125.76,31.01154707]
[1741815574946,0.05237234,125.78,125.76,0.05154707]
[1741815575151,7.9524,125.77,125.76,0.05154707]
[1741815577647,0.05237234,125.78,125.76,0.05154707]
[1741815578053,0.05237234,125.78,125.76,31.01154707]
[1741815580454,0.05237234,125.78,125.76,0.05154707]
[1741815581155,8.00467234,125.78,125.76,0.05154707]
[1741815581350,0.05237234,125.78,125.76,0.05154707]
[1741815581751,7.9524,125.77,125.76,0.05154707]
[1741815582449,7.9524,125.77,125.76,4.707e-05]
[1741815591660,15.9124,125.77,125.76,4.707e-05]
[1741815592560,7.96,125.77,125.69,30.96]
[1741815592755,7.9566,125.71,125.69,30.96]
[1741815593559,19.73920027,125.74,125.69,30.96]
[1741815593758,0.05448269,125.71,125.69,31.02010447]
[1741815594157,0.05448269,125.71,125.69,0.06010447]
[1741815594556,11.78430027,125.7,125.62,30.96]
[1741815594756,11.78430027,125.7,125.64,11.78430027]
[1741815594957,19.74140027,125.7,125.64,19.74460027]
[1741815595663,11.78430027,125.7,125.65,30.96]
[1741815595860,0.05386593,125.68,125.66,11.84147555]
[1741815596250,0.05386593,125.68,125.66,15.88657555]
[1741815598459,0.05386593,125.68,125.66,0.05717528]
[1741815598860,8.01226593,125.68,125.66,0.05717528]
[1741815599858,7.9587,125.67,125.66,0.05717528]
[1741815600359,0.05386593,125.68,125.64,7.9603]
[1741815600557,0.05386593,125.68,125.65,11.78430027]
[1741815600757,0.05386593,125.68,125.66,30.96]
[1741815601156,0.05386593,125.68,125.67,7.9587]
[1741815601359,0.05386593,125.68,125.67,19.74300027]
[1741815602058,11.78430027,125.72,125.67,11.78430027]
[1741815602255,11.78430027,125.74,125.67,11.78430027]
[1741815602855,7.9554,125.73,125.67,11.78430027]
[1741815603153,11.78430027,125.74,125.69,7.9571]
[1741815603358,0.05597881,125.71,125.69,8.01484546]
[1741815603854,0.05597881,125.71,125.69,0.05774546]
[1741815604267,8.01247881,125.71,125.69,0.05774546]
[1741815606066,0.05597881,125.71,125.69,42.80204573]
[1741815606462,0.05597881,125.71,125.69,50.75924573]
[1741815606657,0.05597881,125.71,125.69,42.80204573]
[1741815607063,0.05597881,125.71,125.69,50.75904573]
[1741815607467,0.05597881,125.71,125.69,42.80204573]
[1741815607661,0.05597881,125.71,125.69,50.75924573]
[1741815609069,0.05597881,125.71,125.69,42.80204573]
[1741815609768,0.05597881,125.71,125.69,31.01774546]
[1741815610166,0.05597881,125.71,125.69,38.97514546]
[1741815610365,0.05597881,125.71,125.69,31.01774546]
[1741815611471,8.01217881,125.71,125.69,31.01774546]
[1741815611960,0.05597881,125.71,125.69,31.01774546]
[1741815612168,0.05597881,125.71,125.69,42.80204573]
[1741815612364,0.05597881,125.71,125.69,50.75904573]
[1741815615370,0.05597881,125.71,125.69,42.80204573]
[1741815615570,0.05597881,125.71,125.7,7.9568]
[1741815616367,0.05597881,125.71,125.69,50.75884573]
[1741815616766,0.05597881,125.71,125.69,42.80204573]
[1741815617171,0.05597881,125.71,125.7,7.9568]
[1741815617673,7.953,125.77,125.73,7.9548]
[1741815617878,11.78430027,125.79,125.73,38.8948]
[1741815618170,7.9532,125.76,125.73,38.8948]
[1741815618560,11.78430027,125.79,125.74,7.9538]
[1741815618760,0.05405134,125.76,125.74,11.78430027]
[1741815619869,0.05405134,125.76,125.74,19.73840027]
[1741815620272,0.05405134,125.76,125.74,11.78430027]
[1741815621373,0.05405134,125.76,125.74,19.73850027]
[1741815622677,0.05405134,125.76,125.75,7.9537]
[1741815622870,0.05405134,125.76,125.74,11.78430027]
[1741815623479,0.05405134,125.76,125.74,19.73830027]
[1741815624475,0.05405134,125.76,125.75,30.94]
[1741815624981,7.9488,125.83,125.79,7.9508]
[1741815625178,11.78430027,125.85,125.8,11.78430027]
[1741815625679,7.9485,125.84,125.8,19.73450027]
[1741815626281,0.05377345,125.83,125.82,11.78430027]
[1741815626476,7.9476,125.85,125.82,50.65350027]
[1741815626976,18.87524271,125.86,125.82,50.65350027]
[1741815627574,0.06057413,125.85,125.82,50.65350027]
[1741815628266,7.9481,125.84,125.82,42.70430027]
[1741815628472,0.06057413,125.85,125.82,42.70430027]
[1741815628980,7.9483,125.84,125.82,42.70430027]
[1741815629474,0.06057413,125.85,125.82,42.70430027]
[1741815629779,7.9484,125.84,125.82,42.70430027]
[1741815630672,0.06057413,125.85,125.82,42.70430027]
[1741815630879,7.9484,125.84,125.82,42.70430027]
[1741815631376,0.06057413,125.85,125.82,42.70430027]
[1741815631582,7.9484,125.84,125.82,42.70430027]
[1741815631781,0.06057413,125.85,125.82,42.70430027]
[1741815632282,7.9483,125.84,125.82,42.70430027]
[1741815636980,0.06057413,125.85,125.82,42.70430027]
[1741815637183,7.9486,125.83,125.82,42.70430027]
[1741815637981,7.9481,125.84,125.82,42.70430027]
[1741815638583,8.00827413,125.85,125.82,42.70430027]
[1741815640085,8.00827413,125.85,125.82,50.65340027]
[1741815640386,0.06057413,125.85,125.82,42.70430027]
[1741815640588,7.948,125.84,125.82,11.78430027]
[1741815640786,7.948,125.84,125.82,42.68430027]
[1741815642685,8.00817413,125.85,125.82,50.63350027]
[1741815643689,0.06057413,125.85,125.82,11.78430027]
[1741815643890,0.06057413,125.85,125.82,42.68430027]
[1741815644382,8.00817413,125.85,125.82,50.63330027]
[1741815649694,0.06057413,125.85,125.82,42.68430027]
[1741815649887,8.00827413,125.85,125.82,50.63340027]
[1741815651388,7.948,125.84,125.82,50.63350027]
[1741815652192,7.948,125.84,125.82,42.68430027]
[1741815652696,7.9486,125.83,125.82,42.68430027]
[1741815653200,0.06057413,125.85,125.82,42.68430027]
[1741815653496,7.9483,125.84,125.82,42.68430027]
[1741815661802,0.06057413,125.85,125.81,0.05095798]
[1741815662109,7.9492,125.82,125.81,0.05095798]
[1741815666609,11.78430027,125.84,125.81,0.05095798]
[1741815666907,19.73270027,125.84,125.81,0.05095798]
[1741815667809,0.06057413,125.85,125.81,11.83525825]
[1741815668107,0.06057413,125.85,125.81,42.71525825]
[1741815668311,8.00787413,125.85,125.81,42.71525825]
[1741815671511,0.06057413,125.85,125.81,42.71525825]
[1741815672106,10.92834271,125.9,125.83,11.78430027]
[1741815672310,10.92834271,125.9,125.87,11.78430027]
[1741815672516,10.92834271,125.91,125.87,42.64430027]
[1741815672710,10.92834271,125.91,125.89,7.9447]
[1741815673017,10.92834271,125.91,125.89,19.72900027]
[1741815673211,120.21176986,125.92,125.91,7.9436]
[1741815673418,130.21589962,125.93,125.91,11.78430027]
[1741815673614,213.35111358,125.94,125.91,19.72430027]
[1741815673916,5.53e-06,125.94,125.93,11.78430027]
[1741815674108,188.02383831,125.95,125.93,42.64430027]
[1741815674304,188.02383831,125.95,125.94,7.9417]
[1741815674913,188.02383831,125.95,125.93,42.6983006]
[1741815675516,188.02383831,125.95,125.93,50.6404006]